bitfinex/quotes_SOLUSD_20241102
["timestamp","ask_amount","ask_price","bid_price","bid_amount"]
[1730587669697,4.48034567,165.92,165.85,37.1944]
[1730587669898,49.803084,165.94,165.85,37.1944]
[1730587670092,4.48037386,165.93,165.85,37.1944]
[1730587670289,4.48023947,165.92,165.85,37.1944]
[1730587670592,49.803084,165.94,165.85,37.1944]
[1730587670792,4.48008821,165.93,165.85,37.1944]
[1730587670988,6.22556621,165.98,165.86,20.0]
[1730587671306,0.1,165.99,165.86,20.0]
[1730587671599,4.4804302,165.98,165.86,20.0]
[1730587671900,0.1,165.99,165.86,20.0]
[1730587671901,4.4804302,165.97,165.86,20.0]
[1730587672104,4.4804302,165.96,165.86,20.0]
[1730587672308,4.4804302,165.95,165.87,21.1008]
[1730587672490,4.4804302,165.94,165.88,20.0]
[1730587672683,23.776884,165.99,165.88,20.0]
[1730587672888,23.776884,165.96,165.88,20.0]
[1730587673102,4.48060734,165.95,165.88,20.0]
[1730587673305,4.48060734,165.94,165.88,20.0]
[1730587673601,23.776884,165.96,165.88,20.0]
[1730587673807,4.48069936,165.95,165.89,21.0982]
[1730587674008,4.48069936,165.94,165.89,21.0982]
[1730587674198,26.0248,165.98,165.89,51.2386]
[1730587674397,4.48104049,165.97,165.89,51.2386]
[1730587674593,4.48104049,165.96,165.89,51.2386]
[1730587674801,4.48104049,165.95,165.89,51.2386]
[1730587674998,20.0,165.98,165.89,51.2386]
[1730587676409,4.48070004,165.97,165.89,51.2386]
[1730587676909,20.0,165.98,165.89,51.2386]
[1730587678084,4.48221204,165.97,165.89,51.2386]
[1730587679308,4.48221204,165.96,165.89,51.2386]
[1730587680802,4.48221204,165.95,165.89,51.2386]
[1730587681013,26.0248,165.98,165.89,51.2386]
[1730587681404,4.48187366,165.97,165.89,51.2386]
[1730587681610,4.48187366,165.96,165.89,51.2386]
[1730587681786,4.48187366,165.95,165.89,51.2386]
[1730587682104,4.48186777,165.94,165.89,51.2386]
[1730587682309,26.0248,165.98,165.89,51.2386]
[1730587682520,4.48171154,165.97,165.89,51.2386]
[1730587682695,4.48171154,165.96,165.89,51.2386]
[1730587682896,4.48171154,165.95,165.89,51.2386]
[1730587683109,26.0248,165.98,165.89,51.2386]
[1730587683315,4.48139875,165.97,165.89,51.2386]
[1730587683491,4.48139875,165.96,165.89,51.2386]
[1730587683693,4.48139875,165.95,165.89,51.2386]
[1730587683891,26.0248,165.98,165.89,51.2386]
[1730587684113,4.48155036,165.97,165.89,51.2386]
[1730587684308,4.48155036,165.96,165.89,51.2386]
[1730587684605,4.48155036,165.95,165.89,51.2386]
[1730587684816,26.0248,165.98,165.89,51.2386]
[1730587684990,4.48181055,165.97,165.89,51.2386]
[1730587685187,4.48181055,165.96,165.89,51.2386]
[1730587685390,4.48181055,165.95,165.89,51.2386]
[1730587685608,26.0248,165.98,165.89,51.2386]
[1730587685814,4.48185835,165.97,165.89,51.2386]
[1730587686014,4.48185835,165.96,165.89,51.2386]
[1730587686317,4.48185835,165.95,165.89,51.2386]
[1730587686521,26.0248,165.98,165.89,51.2386]
[1730587686710,4.48203839,165.97,165.89,51.2386]
[1730587686903,4.48203839,165.96,165.89,51.2386]
[1730587687096,4.48203839,165.95,165.89,51.2386]
[1730587687296,26.0248,165.98,165.89,51.2386]
[1730587687499,4.48178562,165.97,165.89,51.2386]
[1730587687700,4.48178562,165.96,165.89,51.2386]
[1730587687909,4.48178562,165.95,165.89,51.2386]
[1730587688222,26.0248,165.98,165.89,51.2386]
[1730587688397,4.48159183,165.97,165.89,51.2386]
[1730587688720,4.4818568,165.96,165.89,51.2386]
[1730587688920,4.4818568,165.95,165.89,51.2386]
[1730587689215,26.0248,165.98,165.89,51.2386]
[1730587689515,4.48154826,165.97,165.89,45.2106]
[1730587689715,4.48154826,165.96,165.89,45.2106]
[1730587689921,4.48154826,165.95,165.89,45.2106]
[1730587690222,26.0248,165.98,165.89,45.2106]
[1730587690401,4.48243592,165.97,165.89,30.1404]
[1730587690609,4.48243592,165.96,165.89,30.1404]
[1730587690811,4.48243592,165.95,165.89,30.1404]
[1730587691104,26.0248,165.98,165.89,30.1404]
[1730587691304,4.48316711,165.97,165.89,30.1404]
[1730587691501,4.48316711,165.96,165.89,30.1404]
[1730587691720,4.48316711,165.95,165.89,30.1404]
[1730587692013,26.0248,165.98,165.89,30.1404]
[1730587692206,4.48296937,165.97,165.89,30.1404]
[1730587692407,4.48296937,165.96,165.89,30.1404]
[1730587692607,4.48296937,165.95,165.89,30.1404]
[1730587692912,26.0248,165.98,165.89,30.1404]
[1730587693113,4.48256514,165.97,165.89,30.1404]
[1730587693317,4.48256514,165.96,165.89,30.1404]
[1730587693614,4.48256514,165.95,165.89,30.1404]
[1730587693793,26.0248,165.98,165.89,30.1404]
[1730587693995,4.48234856,165.97,165.89,30.1404]
[1730587694208,26.0248,165.98,165.89,30.1404]
[1730587694209,4.48234856,165.96,165.89,30.1404]
[1730587694410,26.0248,165.98,165.89,30.1404]
[1730587694615,4.48245757,165.97,165.89,30.1404]
[1730587694814,4.48245757,165.96,165.89,30.1404]
[1730587695010,4.48245757,165.95,165.89,30.1404]
[1730587695213,4.48245757,165.94,165.89,30.1404]
[1730587695411,26.0248,165.98,165.89,30.1404]
[1730587695613,4.48297794,165.97,165.89,30.1404]
[1730587695804,4.48297794,165.96,165.89,30.1404]
[1730587696003,4.48297794,165.95,165.89,30.1404]
[1730587696224,4.48297794,165.94,165.89,30.1404]
[1730587696521,26.0248,165.98,165.89,30.1404]
[1730587696705,4.48335848,165.97,165.89,30.1404]
[1730587696906,4.48335848,165.96,165.89,30.1404]
[1730587697118,4.48335848,165.95,165.89,30.1404]
[1730587697318,4.48335848,165.94,165.89,30.1404]
[1730587697625,26.0248,165.98,165.89,30.1404]
[1730587697927,4.48373394,165.97,165.89,30.1404]
[1730587698127,4.48373394,165.96,165.89,30.1404]
[1730587698335,26.0248,165.98,165.89,30.1404]
[1730587698336,4.48373394,165.95,165.89,30.1404]
[1730587698626,4.48373394,165.94,165.89,30.1404]
[1730587698812,26.0248,165.98,165.89,30.1404]
[1730587699013,4.48546579,165.97,165.89,30.1404]
[1730587699229,4.48546579,165.96,165.89,30.1404]
[1730587699526,4.48546579,165.95,165.89,30.1404]
[1730587699740,4.48546579,165.94,165.89,30.1404]
[1730587699912,26.0248,165.98,165.89,30.1404]
[1730587700108,4.48558171,165.97,165.89,30.1404]
[1730587700433,4.48558171,165.96,165.89,30.1404]
[1730587700730,4.48558171,165.95,165.89,30.1404]
[1730587700933,4.48558171,165.94,165.89,30.1404]
[1730587701230,26.0248,165.98,165.89,30.1404]
[1730587701407,4.48530337,165.97,165.89,30.1404]
[1730587701725,4.48521361,165.96,165.89,30.1404]
[1730587701925,4.48521361,165.95,165.89,30.1404]
[1730587702129,4.48521361,165.94,165.89,30.1404]
[1730587702322,26.0248,165.98,165.89,30.1404]
[1730587702525,4.48538055,165.97,165.89,30.1404]
[1730587702712,4.48538055,165.96,165.89,30.1404]
[1730587702908,4.48538055,165.95,165.89,30.1404]
[1730587703135,4.48538055,165.94,165.89,30.1404]
[1730587703431,26.0248,165.98,165.89,30.1404]
[1730587703631,4.48621714,165.97,165.89,30.1404]
[1730587703834,4.48621714,165.96,165.89,30.1404]
[1730587704033,4.48621714,165.95,165.89,30.1404]
[1730587704333,4.48621714,165.94,165.89,30.1404]
[1730587704511,26.0248,165.98,165.89,30.1404]
[1730587704713,4.48655062,165.97,165.89,30.1404]
[1730587705006,4.48655062,165.96,165.89,30.1404]
[1730587705233,4.48655062,165.95,165.89,30.1404]
[1730587705531,4.48655062,165.94,165.89,30.1404]
[1730587705741,26.0248,165.98,165.89,30.1404]
[1730587706039,4.48686886,165.97,165.89,30.1404]
[1730587706231,4.48686886,165.96,165.89,30.1404]
[1730587706416,4.48686886,165.95,165.89,30.1404]
[1730587706618,4.48686886,165.94,165.89,30.1404]
[1730587706943,26.0248,165.98,165.89,30.1404]
[1730587707231,4.48860047,165.97,165.89,30.1404]
[1730587707435,4.48860047,165.96,165.89,30.1404]
[1730587707614,4.48860047,165.95,165.89,30.1404]
[1730587707813,4.48860047,165.94,165.89,30.1404]
[1730587708115,26.0248,165.98,165.89,30.1404]
[1730587708435,4.48875341,165.97,165.89,30.1404]
[1730587708623,4.48875341,165.96,165.89,30.1404]
[1730587708818,26.0248,165.98,165.89,30.1404]
[1730587708819,4.48875341,165.95,165.89,30.1404]
[1730587709019,4.48875341,165.94,165.89,30.1404]
[1730587709332,4.49089039,165.93,165.89,30.1404]
[1730587709640,26.0248,165.98,165.89,30.1404]
[1730587709814,4.49118088,165.97,165.89,30.1404]
[1730587710015,4.49118088,165.96,165.89,30.1404]
[1730587710218,4.49118088,165.95,165.89,30.1404]
[1730587710526,4.49118088,165.94,165.89,30.1404]
[1730587710721,4.49118088,165.93,165.89,30.1404]
[1730587710927,6.0253,165.97,165.89,30.1404]
[1730587711124,4.4924675,165.96,165.89,30.1404]
[1730587711329,4.4924675,165.95,165.89,30.1404]
[1730587711528,4.4924675,165.94,165.89,30.1404]
[1730587711732,4.4924675,165.93,165.89,30.1404]
[1730587711920,6.0253,165.97,165.89,30.1404]
[1730587712120,4.49349997,165.96,165.89,30.1404]
[1730587712322,6.0253,165.97,165.89,30.1404]
[1730587712626,4.4938553,165.96,165.89,30.1404]
[1730587712835,4.4938553,165.95,165.89,30.1404]
[1730587713026,4.4938553,165.94,165.89,30.1404]
[1730587713340,6.0253,165.97,165.89,30.1404]
[1730587713341,4.4938553,165.93,165.89,30.1404]
[1730587713635,6.0253,165.97,165.89,30.1404]
[1730587713834,4.4943227,165.96,165.89,30.1404]
[1730587714029,4.4943227,165.95,165.89,30.1404]
[1730587714219,6.0253,165.97,165.89,30.1404]
[1730587714220,4.4943227,165.94,165.89,30.1404]
[1730587714422,4.4943227,165.93,165.89,30.1404]
[1730587714732,6.0253,165.97,165.89,30.1404]
[1730587714913,4.49495319,165.96,165.89,30.1404]
[1730587715120,4.49495319,165.95,165.89,30.1404]
[1730587715318,4.49495319,165.94,165.89,30.1404]
[1730587715537,4.49495319,165.93,165.89,30.1404]
[1730587715752,6.0253,165.97,165.89,30.1404]
[1730587716329,4.49510057,165.96,165.89,30.1404]
[1730587716536,4.49510057,165.95,165.89,30.1404]
[1730587716736,4.49510057,165.94,165.89,30.1404]
[1730587717047,4.49510057,165.93,165.89,30.1404]
[1730587717246,4.49947819,165.92,165.89,30.1404]
[1730587717449,6.0253,165.97,165.89,30.1404]
[1730587717654,4.49964451,165.96,165.89,30.1404]
[1730587717956,4.49964451,165.95,165.89,30.1404]
[1730587718136,4.49964451,165.94,165.89,30.1404]
[1730587718335,4.49964451,165.93,165.89,30.1404]
[1730587718535,4.49964451,165.92,165.89,30.1404]
[1730587718749,6.0253,165.97,165.89,30.1404]
[1730587719060,4.50130086,165.96,165.89,30.1404]
[1730587719241,4.50130086,165.95,165.89,30.1404]
[1730587719439,4.50130086,165.94,165.89,30.1404]
[1730587719646,4.5030327,165.93,165.89,30.1404]
[1730587719830,4.5030327,165.92,165.89,30.1404]
[1730587720033,6.0253,165.97,165.89,30.1404]
[1730587720342,4.50365067,165.96,165.89,30.1404]
[1730587720650,4.50365067,165.95,165.89,30.1404]
[1730587720848,4.50365067,165.94,165.89,30.1404]
[1730587721058,4.50365067,165.93,165.89,30.1404]
[1730587721355,4.50365067,165.92,165.89,30.1404]
[1730587721657,6.0253,165.97,165.89,30.1404]
[1730587721856,4.50710697,165.96,165.89,30.1404]
[1730587722148,4.50710697,165.95,165.89,30.1404]
[1730587722362,4.50710697,165.94,165.89,30.1404]
[1730587722534,4.50710697,165.93,165.89,30.1404]
[1730587722736,4.50710697,165.92,165.89,30.1404]
[1730587722939,6.0253,165.97,165.89,30.1404]
[1730587723139,4.50719245,165.96,165.89,30.1404]
[1730587723342,4.50748742,165.95,165.89,30.1404]
[1730587723546,4.50748742,165.94,165.89,30.1404]
[1730587723747,4.50748742,165.93,165.89,30.1404]
[1730587723949,4.50748742,165.92,165.89,30.1404]
[1730587724254,6.0253,165.97,165.89,30.1404]
[1730587724456,4.50761294,165.96,165.89,30.1404]
[1730587724756,6.0253,165.97,165.89,30.1404]
[1730587724757,4.50761294,165.95,165.89,30.1404]
[1730587724929,4.50761294,165.94,165.89,30.1404]
[1730587725134,4.50761294,165.93,165.89,30.1404]
[1730587725454,4.50761294,165.92,165.89,30.1404]
[1730587725755,4.50761294,165.91,165.89,30.1404]
[1730587725957,6.0253,165.97,165.89,30.1404]
[1730587726144,4.51091901,165.96,165.89,30.1404]
[1730587726455,4.51091901,165.95,165.89,30.1404]
[1730587726657,4.51091901,165.94,165.89,30.1404]
[1730587726861,4.51091901,165.93,165.89,30.1404]
[1730587727071,4.51091901,165.92,165.89,30.1404]
[1730587727357,4.51091901,165.91,165.89,30.1404]
[1730587727661,6.0253,165.97,165.89,30.1404]
[1730587727866,4.51317311,165.96,165.89,30.1404]
[1730587728158,4.51317311,165.95,165.89,30.1404]
[1730587728334,4.51317311,165.94,165.89,30.1404]
[1730587728540,4.51317311,165.93,165.89,30.1404]
[1730587728853,4.51317311,165.92,165.89,30.1404]
[1730587729045,4.51317311,165.91,165.89,30.1404]
[1730587729246,6.0253,165.97,165.89,30.1404]
[1730587729453,4.51528523,165.96,165.89,30.1404]
[1730587729758,4.51528523,165.95,165.89,30.1404]
[1730587729957,4.51528523,165.94,165.89,30.1404]
[1730587730155,4.51528523,165.93,165.9,36.2929]
[1730587730334,6.0244,166.0,165.9,36.2929]
[1730587730335,4.51528523,165.92,165.9,36.2929]
[1730587730536,6.0244,166.0,165.9,36.2929]
[1730587730752,4.51625128,165.99,165.92,20.0]
[1730587730962,9.44189415,166.02,165.92,20.0]
[1730587731440,4.51562414,166.01,165.94,20.0]
[1730587731639,4.51562414,166.0,165.94,20.0]
[1730587731835,4.51562414,165.99,165.94,20.0]
[1730587732062,4.51562414,165.98,165.94,20.0]
[1730587732270,4.51562414,165.97,165.94,20.0]
[1730587732556,4.51562414,165.96,165.94,20.0]
[1730587732758,6.0227,166.04,165.94,20.0]
[1730587732958,4.51172925,166.03,165.94,20.0]
[1730587733159,4.51172925,166.02,165.94,20.0]
[1730587733345,4.51172925,166.01,165.95,21.0906]
[1730587733545,4.51172925,166.0,165.95,21.0906]
[1730587733748,4.51172925,165.99,165.95,21.0906]
[1730587733946,4.51172925,165.98,165.95,21.0906]
[1730587734155,6.0227,166.04,165.95,21.0906]
[1730587734353,4.5103001,166.03,165.95,21.0906]
[1730587734555,4.5103001,166.02,165.95,21.0906]
[1730587734769,4.5103001,166.01,165.95,21.0906]
[1730587734964,6.0227,166.04,165.95,21.0906]
[1730587734965,4.5103001,166.0,165.95,21.0906]
[1730587735271,4.5103001,165.99,165.95,21.0906]
[1730587735474,4.5103001,165.98,165.95,21.0906]
[1730587735782,20.0,166.04,165.95,21.0906]
[1730587736071,4.506814,166.03,165.95,21.0906]
[1730587736267,4.506814,166.02,165.95,21.0906]
[1730587736564,4.506814,166.01,165.95,21.0906]
[1730587736866,4.506814,166.0,165.95,21.0906]
[1730587737051,4.506814,165.99,165.95,21.0906]
[1730587737251,4.506814,165.98,165.95,21.0906]
[1730587737451,26.0227,166.04,165.95,21.0906]
[1730587737660,4.50481423,166.03,165.95,21.0906]
[1730587737861,4.50481478,166.02,165.95,21.0906]
[1730587738058,4.50481478,166.01,165.95,21.0906]
[1730587738269,26.0227,166.04,165.95,21.0906]
[1730587738270,4.50481478,166.0,165.95,21.0906]
[1730587738468,4.50481478,165.99,165.95,21.0906]
[1730587738669,4.50481478,165.98,165.95,21.0906]
[1730587738872,26.0227,166.04,165.95,21.0906]
[1730587739172,4.50394828,166.03,165.95,21.0906]
[1730587739472,4.50394828,166.02,165.95,21.0906]
[1730587739762,4.50394828,166.01,165.95,21.0906]
[1730587739968,4.50394828,166.0,165.95,21.0906]
[1730587740155,4.50394828,165.99,165.95,21.0906]
[1730587740362,26.0227,166.04,165.95,21.0906]
[1730587740578,4.50308538,166.03,165.95,21.0906]
[1730587740753,4.50308538,166.02,165.95,21.0906]
[1730587740944,4.50308647,166.01,165.95,21.0906]
[1730587741150,4.50308647,166.0,165.95,21.0906]
[1730587741458,26.0227,166.04,165.95,21.0906]
[1730587741649,4.50297851,165.99,165.95,21.0906]
[1730587741849,26.0227,166.04,165.95,21.0906]
[1730587742067,4.50221748,166.03,165.95,21.0906]
[1730587742266,4.50221748,166.02,165.95,21.0906]
[1730587742569,4.50221748,166.01,165.95,21.0906]
[1730587742769,4.50221748,166.0,165.95,21.0906]
[1730587743070,4.50221748,165.99,165.95,21.0906]
[1730587743290,26.0227,166.04,165.95,21.0906]
[1730587743462,4.50086298,166.03,165.95,21.0906]
[1730587743657,4.50086298,166.02,165.95,21.0906]
[1730587743969,4.50086298,166.01,165.95,21.0906]
[1730587744173,26.0227,166.04,165.95,21.0906]
[1730587744470,4.50078027,166.03,165.95,21.0906]
[1730587744777,4.50078027,166.02,165.95,21.0906]
[1730587744956,4.50078027,166.01,165.95,21.0906]
[1730587745159,4.50078027,166.0,165.95,21.0906]
[1730587745465,4.50078027,165.99,165.95,21.0906]
[1730587745650,29.799084,166.05,165.96,20.0]
[1730587745851,4.49974672,166.04,165.96,20.0]
[1730587746160,4.49974672,166.03,165.96,20.0]
[1730587746470,4.49974672,166.02,165.96,20.0]
[1730587746671,4.49974672,166.01,165.96,20.0]
[1730587746974,4.49974672,166.0,165.97,21.088]
[1730587747181,6.0227,166.04,165.97,21.088]
[1730587747374,4.4989052,166.03,165.97,21.088]
[1730587747578,4.4989052,166.02,165.97,21.088]
[1730587747877,4.4989052,166.01,165.97,21.088]
[1730587748072,4.4989052,166.0,165.97,15.0629]
[1730587748282,4.4989052,165.99,165.97,15.0629]
[1730587748468,6.0227,166.04,165.97,15.0629]
[1730587748669,4.49842563,166.03,165.97,15.0629]
[1730587748980,4.49842563,166.02,165.97,15.0629]
[1730587749182,4.49842563,166.01,165.97,15.0629]
[1730587749357,4.49842563,166.0,165.97,15.0629]
[1730587749684,4.49842563,165.99,165.97,15.0629]
[1730587749981,6.0222,166.05,165.97,15.0629]
[1730587750187,4.49815559,166.04,165.97,15.0629]
[1730587750485,4.49815559,166.03,165.97,15.0629]
[1730587750664,4.49815559,166.02,165.97,15.0629]
[1730587750869,4.49815559,166.01,165.97,15.0629]
[1730587751185,4.49815559,166.0,165.97,15.0629]
[1730587751366,4.49815559,165.99,165.97,15.0629]
[1730587751682,23.1371,166.06,165.97,15.0629]
[1730587752064,4.49752736,166.05,165.97,15.0629]
[1730587752265,4.49752736,166.04,165.97,15.0629]
[1730587752460,4.49752736,166.03,165.97,15.0629]
[1730587752665,4.49752736,166.02,165.97,15.0629]
[1730587752869,4.49752736,166.01,165.97,15.0629]
[1730587753071,23.1371,166.06,165.97,15.0629]
[1730587753267,4.4961928,166.05,165.97,15.0629]
[1730587753485,4.4961928,166.04,165.97,15.0629]
[1730587753674,4.4961928,166.03,165.97,15.0629]
[1730587753881,4.4961928,166.02,165.97,15.0629]
[1730587754074,4.4961928,166.01,165.97,15.0629]
[1730587754381,23.1371,166.06,165.97,15.0629]
[1730587754556,4.49568383,166.05,165.97,15.0629]
[1730587754762,4.49568383,166.04,165.97,15.0629]
[1730587755069,4.49568383,166.03,165.97,15.0629]
[1730587755274,23.1371,166.06,165.97,15.0629]
[1730587755470,4.49529331,166.02,165.97,15.0629]
[1730587755666,23.1371,166.06,165.97,15.0629]
[1730587755867,4.49523947,166.05,165.97,15.0629]
[1730587756063,4.49523947,166.04,165.97,15.0629]
[1730587756264,4.49523947,166.03,165.97,15.0629]
[1730587756465,4.49523947,166.02,165.97,15.0629]
[1730587756775,23.1371,166.06,165.97,15.0629]
[1730587756973,4.49455846,166.05,165.97,15.0629]
[1730587757179,4.49455846,166.04,165.97,15.0629]
[1730587757371,4.49455846,166.03,165.97,15.0629]
[1730587757567,26.0211,166.09,165.98,43.776884]
[1730587757761,4.4940512,166.07,165.98,43.776884]
[1730587757968,4.4940512,166.06,165.98,43.776884]
[1730587758167,4.4940512,166.05,165.98,43.776884]
[1730587758373,4.4940512,166.04,165.98,43.776884]
[1730587758572,4.4940512,166.03,165.98,43.776884]
[1730587758785,6.0208,166.09,165.99,21.0855]
[1730587758959,4.493508,166.07,166.0,20.0]
[1730587759166,4.493508,166.06,166.0,20.0]
[1730587759392,4.493508,166.05,166.0,20.0]
[1730587759686,4.493508,166.04,166.0,20.0]
[1730587759878,4.493508,166.03,166.01,21.083]
[1730587760184,6.326029,166.08,166.01,21.083]
[1730587760389,4.49257847,166.07,166.01,21.083]
[1730587760687,4.49257847,166.06,166.01,21.083]
[1730587760875,4.49257847,166.05,166.01,15.0593]
[1730587761074,4.49257847,166.04,166.01,15.0593]
[1730587761268,6.326029,166.08,166.01,15.0593]
[1730587761469,4.49215516,166.07,166.01,15.0593]
[1730587761668,4.49215516,166.06,166.01,15.0593]
[1730587761877,4.49215516,166.05,166.01,15.0593]
[1730587762073,4.49215516,166.04,166.01,15.0593]
[1730587762271,6.326029,166.08,166.01,15.0593]
[1730587762588,4.49178267,166.07,166.01,15.0593]
[1730587762761,4.49178267,166.06,166.01,15.0593]
[1730587762961,4.49178267,166.05,166.01,15.0593]
[1730587763187,4.49178267,166.04,166.01,15.0593]
[1730587763384,6.326029,166.08,166.01,15.0593]
[1730587763586,4.4914761,166.07,166.01,15.0593]
[1730587763887,4.4914761,166.06,166.01,15.0593]
[1730587764087,4.4914761,166.05,166.01,15.0593]
[1730587764285,4.4914761,166.04,166.01,15.0593]
[1730587764482,6.326029,166.08,166.01,15.0593]
[1730587764781,4.49122055,166.07,166.01,15.0593]
[1730587764968,4.49122055,166.06,166.01,15.0593]
[1730587765168,4.49122055,166.05,166.01,15.0593]
[1730587765374,4.49122055,166.04,166.01,15.0593]
[1730587765574,6.326029,166.08,166.01,15.0593]
[1730587765796,4.49100087,166.07,166.01,15.0593]
[1730587765983,4.49100087,166.06,166.01,15.0593]
[1730587766178,4.49100196,166.05,166.01,15.0593]
[1730587766492,4.49100196,166.04,166.01,15.0593]
[1730587766672,6.326029,166.08,166.01,15.0593]
[1730587766872,4.49082442,166.07,166.01,15.0593]
[1730587767086,4.49082442,166.06,166.01,15.0593]
[1730587767389,4.49082442,166.05,166.01,15.0593]
[1730587767583,4.49082442,166.04,166.01,15.0593]
[1730587767785,6.326029,166.08,166.01,15.0593]
[1730587767978,4.49065531,166.07,166.01,15.0593]
[1730587768182,4.49065531,166.06,166.01,15.0593]
[1730587768488,4.49065531,166.05,166.01,15.0593]
[1730587768692,4.49065531,166.04,166.01,15.0593]
[1730587768895,6.326029,166.08,166.01,15.0593]
[1730587769086,4.49062521,166.07,166.01,15.0593]
[1730587769279,6.326029,166.08,166.01,15.0593]
[1730587769280,4.49062521,166.06,166.01,15.0593]
[1730587769593,4.49062521,166.05,166.01,15.0593]
[1730587769780,6.326029,166.08,166.01,15.0593]
[1730587769989,4.49065954,166.07,166.01,15.0593]
[1730587770180,4.49065954,166.06,166.01,15.0593]
[1730587770479,4.49065954,166.05,166.01,15.0593]
[1730587770684,6.326029,166.08,166.01,15.0593]
[1730587770983,4.49069588,166.07,166.01,15.0593]
[1730587771175,4.49069588,166.06,166.01,15.0593]
[1730587771494,4.49069588,166.05,166.01,15.0593]
[1730587771691,4.49069588,166.04,166.01,15.0593]
[1730587771993,6.326029,166.08,166.01,15.0593]
[1730587772182,4.49074978,166.07,166.01,15.0593]
[1730587772495,4.49074978,166.06,166.01,15.0593]
[1730587772784,4.49074978,166.05,166.01,15.0593]
[1730587772990,4.49074978,166.04,166.01,15.0593]
[1730587773186,6.326029,166.08,166.01,15.0593]
[1730587773397,4.49062832,166.07,166.01,15.0593]
[1730587773700,4.49062832,166.06,166.01,15.0593]
[1730587773881,4.49062832,166.05,166.01,15.0593]
[1730587774080,4.49062832,166.04,166.01,15.0593]
[1730587774277,6.326029,166.08,166.01,15.0593]
[1730587774595,4.49119891,166.07,166.01,15.0593]
[1730587774773,4.49119891,166.06,166.01,15.0593]
[1730587774973,4.49119891,166.05,166.01,15.0593]
[1730587775173,4.49119891,166.04,166.01,15.0593]
[1730587775385,6.326029,166.08,166.01,15.0593]
[1730587775587,4.49146078,166.07,166.01,15.0593]
[1730587775787,4.49146078,166.06,166.01,15.0593]
[1730587775997,4.49146078,166.05,166.01,15.0593]
[1730587776195,6.326029,166.08,166.01,15.0593]
[1730587776196,4.49146078,166.04,166.01,15.0593]
[1730587776495,6.326029,166.08,166.01,15.0593]
[1730587776790,4.4919052,166.07,166.01,15.0593]
[1730587776993,4.4919052,166.06,166.01,15.0593]
[1730587777193,6.326029,166.08,166.01,15.0593]
[1730587777500,4.49182271,166.07,166.01,15.0593]
[1730587777682,4.49182271,166.06,166.01,15.0593]
[1730587777883,4.49182271,166.05,166.01,15.0593]
[1730587778202,4.49182271,166.04,166.01,15.0593]
[1730587778376,6.326029,166.08,166.01,15.0593]
[1730587778692,4.49272051,166.07,166.01,15.0593]
[1730587778887,4.49272051,166.06,166.01,15.0593]
[1730587779199,4.49272051,166.05,166.01,15.0593]
[1730587779383,4.49272051,166.04,166.01,15.0593]
[1730587779582,0.304729,166.08,166.01,15.0593]
[1730587779904,4.49316296,166.07,166.01,21.083]
[1730587780094,4.49316296,166.06,166.01,21.083]
[1730587780294,4.49316296,166.05,166.01,21.083]
[1730587780494,4.49316296,166.04,166.01,21.083]
[1730587780808,0.304729,166.08,166.01,21.083]
[1730587781007,4.49373874,166.07,166.01,21.083]
[1730587781184,4.49373874,166.06,166.01,21.083]
[1730587781493,4.49373874,166.06,166.0,46.18]
[1730587781494,4.49373874,166.05,166.03,21.0805]
[1730587781681,4.49373874,166.04,166.03,21.0805]
[1730587783679,4.49373874,166.04,166.03,15.0575]
[1730587784597,4.49630895,166.04,166.03,15.0575]
[1730587784799,4.49630933,166.04,166.03,15.0575]
[1730587785104,0.304729,166.08,166.04,20.0]
[1730587785688,0.304729,166.08,166.06,20.0]
[1730587785892,0.304729,166.08,166.06,15.0543]
[1730587791506,0.304729,166.08,166.07,26.0215]
[1730587803714,0.304729,166.08,166.07,49.798384]
[1730587806806,0.304729,166.08,166.07,49.898384]
[1730587808716,0.304729,166.08,166.07,49.798384]
[1730587816821,0.109458,166.16,166.09,20.0]
[1730587817006,4.47974757,166.15,166.09,20.0]
[1730587817211,0.109458,166.16,166.09,20.0]
[1730587817409,4.47964098,166.15,166.09,20.0]